Cogmind - Beta 13 @@@ ROGUE MODE // 2024.07.16 @ 23:22:57 Player: Temnova Result: Destroyed by Y-45 Defender with Beam Rifle Performance ------------- Evolutions (1) 500 Regions Visited (3) 600 Robots Destroyed (20) 100 Value Destroyed (484) 484 Prototype IDs (3) 60 Alien Tech Used (0) 0 Bonus (0) 0 TOTAL SCORE: 1744 Bonus ------- None Cogmind --------- Core Integrity 0/400 Matter 180/300 Energy 100/100 System Corruption 2% Temperature Cool (9) Movement Core (50) Location -9/Storage Parts ------- > --- POWER (1) -------- (None) > --- PROPULSION (2) --- (None) > --- UTILITY (4) ------ Targeting Computer > --- WEAPON (2) ------- (None) > --- INVENTORY (5) ---- ECM Suite Peak State ------------ > --- POWER ------------ Light Ion Engine > --- PROPULSION ------- Flight Unit > --- UTILITY ---------- Targeting Computer Targeting Computer Targeting Computer Targeting Computer > --- WEAPON ----------- Beam Rifle Spread Laser > --- INVENTORY -------- Assault Rifle [Rating: 10] Favorites ----------- Power Ion Engine Engine Ion Engine Propulsion Flight Unit Wheel Compact Wheel Flight Unit Flight Unit Utility Targeting Computer Device Tractor Beam Storage Small Storage Unit Processor Targeting Computer Weapon Assault Rifle Energy Gun Beam Rifle Ballistic Gun Assault Rifle Ballistic Cannon Improved Light Cannon Launcher Rocket Launcher Build | -11 -10 -9 -9 ------- Run | Yrd Mat Mat Sto Slots Evolved 2 | . . 2 . Power . | . . . . Propulsion . | . . . . Utility 2 | . . 2 . Weapon . | . . . . Parts Attached 28 | 6 8 6 8 Power 3 | 1 1 . 1 Engine 3 | 1 1 . 1 Core . | . . . . Reactor . | . . . . Propulsion 7 | 2 3 . 2 Treads . | . . . . Leg . | . . . . Wheel 2 | 2 . . . Hover . | . . . . Flight 5 | . 3 . 2 Utility 11 | 2 4 5 . Device 2 | 1 1 . . Storage 2 | 1 1 . . Processor 7 | . 2 5 . Hackware . | . . . . Protection . | . . . . Artifact . | . . . . Weapon 7 | 1 . 1 5 Energy Gun 3 | . . . 3 Energy Cannon . | . . . . Ballistic Gun 2 | 1 . . 1 Ballistic Cannon 1 | . . . 1 Launcher 1 | . . 1 . Special Weapon . | . . . . Impact Weapon . | . . . . Slashing Weapon . | . . . . Piercing Weapon . | . . . . Special Melee Weapon . | . . . . Unidentified Prototypes 1 | . . . 1 Parts Lost 12 | . 1 1 10 Power 3 | . 1 1 1 Propulsion 4 | . . . 4 Utility 2 | . . . 2 Weapon 3 | . . . 3 Highest Loss Streak 3 | . 1 1 3 To Critical Strikes . | . . . . Average Slot Usage (%) 72 | . 83 86 57 Engine 8 | . 13 11 3 Wheel 5 | . 11 . . Flight 14 | . 17 22 9 Device 5 | . 12 . . Storage 4 | . 10 . . Processor 21 | . 5 42 35 Energy Gun 2 | . . . 4 Ballistic Gun 7 | . 14 1 1 Naked Turns . | . . . . Heaviest Build 13 | 13 13 10 6 Greatest Support 26 | 26 26 14 9 Greatest Overweight (x) 3 | . 3 . 1 Average Overweight (x) . | . . . . Largest Inventory Capacity 8 | 8 8 8 5 Average Capacity 6 | 6 7 5 5 Most Carried 8 | 5 8 7 4 Average Carried 2 | 1 4 2 1 Final Capacity 8 | 8 8 5 5 Final Carried 8 | 1 8 4 1 Class Distribution -------------------- 100% | Mutant Dominant Class ---------------- Mutant | -10/Materials Mutant | -9/Materials Mutant | -9/Storage Resources | -11 -10 -9 -9 ----------- Run | Yrd Mat Mat Sto Matter Collected 485 | 272 110 15 88 Remotely 55 | 10 45 . . Salvage Created 584 | 124 148 46 266 Parts 30 | 6 8 4 12 Haulers Intercepted 2 | . 1 1 . Recyclers Shooed 1 | 1 . . . Parts Field Recycled . | . . . . Retrieved Matter . | . . . . Parts Self-Destructed . | . . . . Prevented . | . . . . Kills | -11 -10 -9 -9 ------- Run | Yrd Mat Mat Sto Combat Hostiles Destroyed 16 | . 4 4 8 Guns 6 | . 4 . 2 Cannons 6 | . . . 6 AOE 4 | . . 4 . Classes Destroyed 6 | 2 3 1 . Tunneler 1 | 1 . . . Hauler 2 | . 1 1 . Recycler 1 | 1 . . . Swarmer 6 | . 3 3 . Grunt 6 | . 1 . 5 Sentry 4 | . . 1 3 Best Kill Streak 6 | 2 3 5 6 Combat Bots Only 6 | . 3 4 6 Max Kills in Single Turn 3 | 1 1 3 1 Gunslinging . | . . . . Exploded 3 | . . 3 . Melee . | . . . . Uniques/NPCs Destroyed . | . . . . Combat | -11 -10 -9 -9 -------- Run | Yrd Mat Mat Sto Hostile Shots Fired 152 | . 37 25 90 Missed 55 | . 12 7 36 Damage Taken 1188 | . 224 162 802 Core 479 | . 70 37 372 Absorbed by Shields . | . . . . Core Remaining (%) 86 | 100 72 . . Volleys Fired 79 | 4 33 5 37 Largest 1 | 1 1 1 1 Hottest 65 | 20 20 33 65 Shots Fired 79 | 4 33 5 37 Gun 53 | 4 33 . 16 Cannon 21 | . . . 21 Launcher 5 | . . 5 . Special . | . . . . Kinetic 58 | 4 33 . 21 Thermal 16 | . . . 16 Explosive 5 | . . 5 . Electromagnetic . | . . . . Robot Hit Streak 12 | 4 11 12 11 Robot Miss Streak 4 | . 3 1 4 Penetration Max . | . . . . Secondary Targets . | . . . . Shots Hit Robots 61 | 4 20 3 34 Core Hits 40 | 3 7 10 20 Critical Kills . | . . . . Critical Parts Destroyed . | . . . . Critical Strikes . | . . . . Melee Attacks . | . . . . Impact . | . . . . Slashing . | . . . . Piercing . | . . . . Sneak Attacks . | . . . . Combat Hostiles . | . . . . Follow-up Attacks . | . . . . Damage Inflicted 1320 | 52 258 290 720 Guns 569 | 52 258 . 259 Cannons 399 | . . . 399 Explosions 290 | . . 290 . Melee . | . . . . Ramming 62 | . . . 62 Kinetic 709 | 52 258 . 399 Thermal 259 | . . . 259 Explosive 290 | . . 290 . Electromagnetic . | . . . . Impact . | . . . . Slashing . | . . . . Piercing . | . . . . Highest Corruption 2 | . . . 2 Average Corruption 1 | . . . 1 Corruption Purged . | . . . . Corruption Blocked . | . . . . Effects 1 | . . . 1 Message Errors 1 | . . . 1 Overload Shots . | . . . . Overflow Damage . | . . . . Projectiles . | . . . . Explosions . | . . . . Melee . | . . . . Knockbacks 1 | . . . 1 Impact . | . . . . Kinetic 1 | . . . 1 Secondary . | . . . . Self-Inflicted Damage 27 | . . . 27 Shots . | . . . . Rammed 18 | . . . 18 Targets Rammed 18 | . . . 18 Kicked . | . . . . Crushed . | . . . . Highest Temperature 139 | . 2 6 139 Average Temperature 33 | . 2 3 34 Received Heat Transfer 447 | . 54 18 375 Siege Activations . | . . . . Robots Corrupted . | . . . . Combat Hostiles . | . . . . Parts Fried . | . . . . Impact Corruptions . | . . . . Robots Melted . | . . . . Combat Hostiles . | . . . . Parts Melted . | . . . . Heat Transferred 398 | . . . 398 Parts Sabotaged . | . . . . Parts Stolen . | . . . . Parts Stripped . | . . . . Power Chain Reactions . | . . . . Alert | -11 -10 -9 -9 ------- Run | Yrd Mat Mat Sto Peak Influence 308 | 10 111 230 308 Initial 92 | . 6 46 92 Average 98 | 2 58 85 170 Maximum Alert Level 1 | . . 1 1 Low Security (%) 86 | 100 100 86 69 Level 1 13 | . . 13 30 Level 2 . | . . . . Level 3 . | . . . . Level 4 . | . . . . Level 5 . | . . . . High Security . | . . . . Max Security . | . . . . Squads Dispatched 6 | . 1 2 3 Investigation 3 | . 1 1 1 Extermination . | . . . . Reinforcement 3 | . . 1 2 Assault . | . . . . Garrison . | . . . . Intercept . | . . . . Searches Triggered . | . . . . Construction Impeded 1 | . . 1 . Haulers Reinforced . | . . . . Active Scanning Responses . | . . . . Cargo Convoy Interrupts . | . . . . Stealth | -11 -10 -9 -9 --------- Run | Yrd Mat Mat Sto Distress Signals 1 | . . . 1 Communications Jammed . | . . . . Distress Signals . | . . . . Times Spotted 23 | . 4 6 13 Peak Tracking Total 9 | . 3 6 9 Tactical Retreats 1 | . . . 1 Traps | -11 -10 -9 -9 ------- Run | Yrd Mat Mat Sto Traps Triggered 1 | . . . 1 Indirectly . | . . . . Trap Hack Attempts . | . . . . Triggered . | . . . . Disarmed . | . . . . Reprogrammed . | . . . . Reused . | . . . . Traps Extracted . | . . . . Installed . | . . . . Triggered . | . . . . Machines | -11 -10 -9 -9 ---------- Run | Yrd Mat Mat Sto Machines Disabled 1 | . . 1 . Max in Single Turn 1 | . . 1 . Machines Repaired . | . . . . Machines Dismantled . | . . . . Machines Sabotaged . | . . . . Overloaded Fab Kills . | . . . . Hacking | -11 -10 -9 -9 --------- Run | Yrd Mat Mat Sto Machines Accessed 6 | . 2 3 1 Terminals 6 | . 2 3 1 Fabricators . | . . . . Repair Stations . | . . . . Recycling Units . | . . . . Scanalyzers . | . . . . Garrison Access . | . . . . Total Hacks 20 | . 7 10 3 Successful 16 | . 4 10 2 Failed 4 | . 3 . 1 Catastrophic . | . . . . Database Lockouts . | . . . . Manual . | . . . . Terminals 20 | . 7 10 3 Fabricators . | . . . . Repair Stations . | . . . . Recycling Units . | . . . . Scanalyzers . | . . . . Garrison Access . | . . . . Terminal Hacks 16 | . 4 10 2 Record 5 | . 2 3 . Robot Analysis 1 | . . 1 . Prototype ID Bank 1 | . . 1 . Branch Access Points 1 | . . 1 . Emergency Access Points 2 | . 1 1 . Alert Level 2 | . . 1 1 Maintenance Status 1 | . . 1 . Hauler Manifests 1 | . 1 . . Zone Layout 2 | . . 1 1 Fabricator Hacks . | . . . . Repair Station Hacks . | . . . . Recycling Unit Hacks . | . . . . Scanalyzer . | . . . . Garrison Access Hacks . | . . . . Unauthorized Hacks . | . . . . Terminals . | . . . . Fabricators . | . . . . Repair Stations . | . . . . Recycling Units . | . . . . Scanalyzers . | . . . . Garrison Access . | . . . . Data Cores Recovered . | . . . . Used . | . . . . Hacking Detections 4 | . 1 2 1 Full Trace Events 3 | . 1 1 1 Feedback Events . | . . . . Feedback Blocked . | . . . . Robot Schematics Acquired . | . . . . Robots Built . | . . . . Authchips . | . . . . Time . | . . . . Total Robot Build Rating . | . . . . Part Schematics Acquired . | . . . . Parts Built . | . . . . Authchips . | . . . . Time . | . . . . Total Part Build Rating . | . . . . Parts Repaired . | . . . . Time . | . . . . Parts Recycled . | . . . . Recycled Matter . | . . . . Retrieved Matter . | . . . . Retrieved Components . | . . . . Parts Scanalyzed . | . . . . Part Schematics Acquired . | . . . . Parts Damaged . | . . . . Bothacking | -11 -10 -9 -9 ------------ Run | Yrd Mat Mat Sto Used RIF Installer . | . . . . Robots Hacked . | . . . . Non-combat . | . . . . Combat . | . . . . Robot Hacks Applied . | . . . . Relay Couplers Released . | . . . . Fabnet Peak Effective % . | . . . . Robots Rewired . | . . . . Allies Hacked . | . . . . Hacks Repelled . | . . . . Allies | -11 -10 -9 -9 -------- Run | Yrd Mat Mat Sto Total Allies . | . . . . Largest Group . | . . . . Highest-Rated Group . | . . . . Highest-Rated Ally . | . . . . Total Orders . | . . . . Ally Attacks . | . . . . Total Damage . | . . . . Kills . | . . . . Allies Corrupted . | . . . . Allies Melted . | . . . . Intel | -11 -10 -9 -9 ------- Run | Yrd Mat Mat Sto Robot Analysis Total 1 | . . 1 . Derelict Logs Recovered . | . . . . Drone Launches . | . . . . Drone Recoveries . | . . . . Exploration | -11 -10 -9 -9 ------------- Run | Yrd Mat Mat Sto Turns Passed 641 | 58 271 68 244 Spaces Moved 759 | 46 322 122 269 Core 140 | 24 . . 116 Treads . | . . . . Legs . | . . . . Wheels 106 | 22 84 . . Hover . | . . . . Flight 513 | . 238 122 153 Fastest Speed 37 | 50 37 37 37 Average Speed 49 | 69 51 37 48 Slowest Speed 280 | 90 280 37 120 Overloaded Moves . | . . . . Propulsion Burnouts . | . . . . Robots Hopped 7 | . 2 . 5 Cave-ins Triggered . | . . . . Exploration Rate (%) 26 | 4 40 17 45 Regions Visited 3 Branch Regions 1 Pre-discovered Areas . | . . . . Known Exits Taken 1 | . . 1 . Unknown Exits Taken 2 | 1 1 . . Scrap Searched . | . . . . Spaces Dug . | . . . . Terrain Destroyed 33 | . . 32 1 Melee . | . . . . Projectile 1 | . . . 1 AOE 32 | . . 32 . Terrain Rammed . | . . . . Walls Destroyed . | . . . . Machines Disabled . | . . . . Actions | -11 -10 -9 -9 --------- Run | Yrd Mat Mat Sto Total 943 | 68 391 141 343 Wait 29 | 6 13 . 10 Move 743 | 45 317 121 260 Hop 6 | . 2 . 4 Pick Up 25 | 7 11 3 4 Fast Attach 4 | . 4 . . Attach 22 | 6 3 5 8 Detach 1 | . . . 1 Swap 2 | . 1 1 . Drop 14 | . 7 6 1 Fire 79 | 4 33 5 37 Melee . | . . . . Ram 18 | . . . 18 Kick . | . . . . Crush . | . . . . Escape Stasis . | . . . . Rewire . | . . . . Trap . | . . . . Miscellaneous . | . . . . Route ------- -11/Scrapyard -10/Materials -9/Materials (discovered 4 exits: Min x2 / *Sto x2) -9/Storage History --------- Turn | Location | Event 9 | -11/Scrapyard | Discovered new exit (range 15) 59 | -11/Scrapyard | Entered Materials 127 | -10/Materials | Discovered new exit (range 13) 303 | -10/Materials | Build established: Mutant 330 | -10/Materials | Entered another Materials area 330 | -9/Materials | Evolved 2 slots: Utility x2 356 | -9/Materials | Identified exit to Mines 356 | -9/Materials | Identified exit to Storage 398 | -9/Materials | Entered Storage 516 | -9/Storage | Lost 3 parts (1p1u1w) 528 | -9/Storage | Core integrity fell below 50% 634 | -9/Storage | Core integrity fell below 20% 642 | -9/Storage | Destroyed by Y-45 Defender with Beam Rifle Last Messages --------------- G-47 Trooper destroyed. Y-45 Defender destroyed. Imp. Light Cannon destroyed. Acquired 5 matter. Imp. Flight Unit destroyed. T-07 Excavator is excavating. Triggered Blade Trap. Massive razor-sharp blades shoot up from within the floor. Targeting Computer severed. Slammed into Y-45 Defender. Targeting Computer broken. Destabilizing: Short circuit. Slammed into Y-45 Defender. Targeting Computer broken. Destabilizing: Short circuit. Slammed into Y-45 Defender. Broken Targeting Computer destroyed. System corrupted by crushing effect (+1). Destabilizing: Core damaged (-4). Slammed into Y-45 Defender. Map ----- +----------------------------------------------------+ | #####+##### ########????????? | | ##=[ # #???????????????? | | ##%""" # ##??????????????? | | ##!" """" # T#??????????????? | | ##### " "" " # ##??????????????? | | ????# " "" " + #???????????????? | | ##### """" " # #???###?????????? | | / """ # ##### #?????????? | | ##### # # #?????????? | | ????# # # #?????????? | | ????###"###### # """ ####??????? | | ??????# #????# # """ # #??????? | | ####### ###### #?????## ####???? | | #?????+ #???? | | +###### ###### #?????# #???? | | ???####/###??# ##+#### #???? | | ???# !#??# #???? | | ???# """ #??# ##+##### #???? | | ???# """ #??# # # #???? | | ???# """ #??# + + #???? | | ???# """ #####+###+# # #???? | | ####%""" # # # #???? | | #""" # """" # + #???? | | #"R """ # ""??" # # #???? | | #""" """ # ""???" ######## #???? | | #### """ # "???"" + @Y #???? | | ???# """ # "??"" ##### ##+#???? | | ??## """ # """" #???# # ???? | | ??# # #???# # ???? | | ########+################ # ??? | | ## # ??? | | ## # ?? | | ## # ?? | | ########+########T## ##+#######? | | # #???#### # ## | | # """" #??????# # """ # | | # ????" #??????# #% """ #? | | #?????" #??????# =#%[ """ %#? | | #?????" #??????+ =%+[= #? | | ! #?????" #??????# %"%! "" =#? | | #?????" #??????# #[ "" ! #? | | #????? #??????# # """ #? | | ####????? #??????# # #? | | ?????????####??????# ##########? | | ???????????????????# #?????????? | | ???????????????????# #?????????? | | ???????????????????# #?????????? | | ???????????????????# #?????????? | | ???????????????????# ??????????? | | ???????????????????# ??????????? | +----------------------------------------------------+ Best States ------------- Heat Dissipation 28 Energy Generation 10 Energy Capacity 250 Matter Stores 300 Matter Capacity 300 Sight Range 16 Terrain Scan Density 10 Additional Mass Support 6 Evasion (%) 62 Targeting Accuracy 20 Item Schematics ----------------- None Robot Schematics ------------------ None Fabricated ------------ Nothing Alien Tech Used ----------------- None Achievements -------------- None Challenges ------------ None Game ------ Seed FissionExoskeletonJammer Manual? 0 Play Time 00:14:34 Cumulative 6.6 hours Start 2024.07.16 @ 23:11:47 End 2024.07.16 @ 23:22:57 Sessions 1 Manual Loads 0 Difficulty Rogue Special Mode None Game No. 17 Rogue 17 Adventurer 0 Explorer 0 Win Type - Total 0 Types 0/0/0/0/0/0/0/0/0 Lore% 15 Gallery% 15 Achievement% 16 Wizard Run 0 Options --------- Layout 0 ASCII 0 Keyboard 0 Movement Mouse Keybinds 0 Fullscreen 1 Font 18/SmallcapsGlow Map View 76x50 Zoom Use 0% Tactical HUD 0 Map Filters NONE Filters NONE Steam 1 RUN: 34f98317-9528-4ecb-bdd7-cf0306f49145